fUSD/lending_fUSD_20250618
["ID","MTS","AMOUNT","RATE_DAILY","PERIOD"]
[366433515,1750253458977,-490.0,0.00016602,2]
[366433516,1750253458986,-725.62,0.00016602,2]
[366433517,1750253458996,-720.92,0.00016602,2]
[366433518,1750253459006,-625.75,0.00016602,2]
[366433519,1750253459016,-490.0,0.00016602,2]
[366433520,1750253459027,-490.0,0.00016602,2]
[366433521,1750253459036,-490.0,0.00016602,2]
[366433522,1750253459046,-1942.27,0.00016602,2]
[366433523,1750253459056,-490.0,0.00016602,2]
[366433524,1750253459065,-774.33,0.00016602,2]
[366433525,1750253459075,-1213.24,0.00016602,2]
[366433526,1750253459087,-826.16,0.00016602,2]
[366433527,1750253459097,-1295.92,0.00016602,2]
[366433528,1750253459107,-490.0,0.00016602,2]
[366433529,1750253459118,-1463.89,0.00016602,2]
[366433530,1750253459128,-736.51,0.00016602,2]
[366433531,1750253459138,-490.0,0.00016602,2]
[366433532,1750253459148,-766.72,0.00016602,2]
[366433533,1750253459158,-490.0,0.00016602,2]
[366433534,1750253459168,-1179.03,0.00016602,2]
[366433535,1750253459179,-490.0,0.00016602,2]
[366433536,1750253459189,-1198.82,0.00016602,2]
[366433537,1750253459198,-349.18,0.00016602,2]
[366433538,1750253459208,-490.0,0.00016602,2]
[366433539,1750253459217,-1861.33,0.00016602,2]
[366433540,1750253459227,-834.99,0.00016602,2]
[366433541,1750253459238,-490.0,0.00016602,2]
[366433542,1750253459248,-969.28,0.00016602,2]
[366433543,1750253459258,-618.36,0.00016602,2]
[366433544,1750253459267,-493.34901741,0.00016602,2]
[366433545,1750253459279,-2134.69,0.00016602,2]
[366433546,1750253459290,-490.0,0.00016602,2]
[366433547,1750253459308,-700.73,0.00016602,2]
[366433548,1750253459319,-1093.15,0.00016602,2]
[366433549,1750253459329,-490.0,0.00016602,2]
[366433550,1750253459338,-660.64,0.00016602,2]
[366433551,1750253459348,-490.0,0.00016602,2]
[366433552,1750253459357,-589.95,0.00016602,2]
[366433553,1750253459367,-589.23,0.00016602,2]
[366433554,1750253459377,-702.73,0.00016602,2]
[366433555,1750253459387,-1162.98,0.00016602,2]
[366433556,1750253459396,-2656.19,0.00016602,2]
[366433557,1750253459406,-685.07,0.00016602,2]
[366433558,1750253459416,-71.80303496,0.00016602,2]
[366433559,1750253459437,-418.19696504,0.00016602,2]
[366433560,1750253459446,-1165.16,0.00016602,2]
[366433561,1750253459456,-490.0,0.00016602,2]
[366433562,1750253459466,-904.14303496,0.00016602,2]
[366433563,1750253459478,-109.41696504,0.00016602,2]
[366433564,1750253459487,-490.0,0.00016602,2]
[366433565,1750253459497,-490.0,0.00016602,2]
[366433566,1750253459506,-529.74,0.00016602,2]
[366433567,1750253459516,-572.6,0.00016602,2]
[366433568,1750253459527,-490.0,0.00016602,2]
[366433569,1750253459537,-518.14,0.00016602,2]
[366433570,1750253459546,-1087.32,0.00016602,2]
[366433571,1750253459556,-490.0,0.00016602,2]
[366433572,1750253459565,-490.0,0.00016602,2]
[366433573,1750253459574,-490.0,0.00016602,2]
[366433574,1750253459584,-608.84,0.00016602,2]
[366433575,1750253459594,-490.0,0.00016602,2]
[366433576,1750253459603,-490.0,0.00016602,2]
[366433577,1750253459612,-976.26,0.00016602,2]
[366433578,1750253459783,-490.0,0.00016602,2]
[366433579,1750253459793,-490.0,0.00016602,2]
[366433580,1750253459804,-837.09,0.00016602,2]
[366433581,1750253459814,-490.0,0.00016602,2]
[366433582,1750253459825,-648.93,0.00016602,2]
[366433583,1750253459834,-490.0,0.00016602,2]
[366433584,1750253459844,-645.9,0.00016602,2]
[366433585,1750253459854,-1917.56,0.00016602,2]
[366433586,1750253459864,-1484.61,0.00016602,2]
[366433587,1750253459873,-592.57,0.00016602,2]
[366433588,1750253459883,-516.45,0.00016602,2]
[366433589,1750253459893,-490.0,0.00016602,2]
[366433590,1750253459903,-688.74,0.00016602,2]
[366433591,1750253459912,-817.84,0.00016602,2]
[366433592,1750253459922,-1204.73,0.00016602,2]
[366433593,1750253459931,-490.0,0.00016602,2]
[366433594,1750253459941,-490.0,0.00016602,2]
[366433595,1750253459950,-597.2,0.00016602,2]
[366433596,1750253459960,-151.0,0.00016602,2]
[366433597,1750253459970,-151.0,0.00016602,2]
[366433598,1750253459980,-707.23,0.00016602,2]
[366433599,1750253459990,-490.0,0.00016602,2]
[366433600,1750253460000,-151.0,0.00016602,2]
[366433601,1750253460010,-195.72793,0.00016602,2]
[366433602,1750253460021,-2020.86,0.00016602,2]
[366433603,1750253460032,-195.72793,0.00016602,2]
[366433604,1750253460043,-151.0,0.00016602,2]
[366433605,1750253460053,-195.72793,0.00016602,2]
[366433606,1750253460064,-195.72793,0.00016602,2]
[366433607,1750253460078,-2147.7,0.00016602,2]
[366433608,1750253460088,-490.0,0.00016602,2]
[366433609,1750253460098,-643.99,0.00016602,2]
[366433610,1750253460108,-195.72793,0.00016602,2]
[366433611,1750253460118,-195.72793,0.00016602,2]
[366433612,1750253460128,-195.72793,0.00016602,2]
[366433613,1750253460138,-195.727936,0.00016602,2]
[366433614,1750253460148,-686.84,0.00016602,2]
[366433615,1750253460158,-1122.35,0.00016602,2]
[366433616,1750253460168,-1127.29,0.00016602,2]
[366433617,1750253460178,-188.50894502,0.00016602,2]
[366433618,1750253460188,-490.0,0.00016602,2]
[366433619,1750253460199,-490.0,0.00016602,2]
[366433620,1750253460209,-490.0,0.00016602,2]
[366433621,1750253460219,-680.63,0.00016602,2]
[366433622,1750253460230,-490.0,0.00016602,2]
[366433623,1750253460240,-490.0,0.00016602,2]
[366433624,1750253460250,-702.92,0.00016602,2]
[366433625,1750253460261,-543.7,0.00016602,2]
[366433626,1750253460272,-706.03,0.00016602,2]
[366433627,1750253460286,-490.0,0.00016602,2]
[366433628,1750253460296,-1496.97,0.00016602,2]
[366433629,1750253460306,-1317.38,0.00016602,2]
[366433630,1750253460316,-490.0,0.00016602,2]
[366433631,1750253460327,-490.0,0.00016602,2]
[366433632,1750253460337,-490.0,0.00016602,2]
[366433633,1750253460347,-490.0,0.00016602,2]
[366433634,1750253460358,-490.0,0.00016602,2]
[366433635,1750253460368,-490.0,0.00016602,2]
[366433636,1750253460378,-490.0,0.00016602,2]
[366433637,1750253460388,-490.0,0.00016602,2]
[366433638,1750253460397,-684.65,0.00016602,2]
[366433639,1750253460407,-727.36,0.00016602,2]
[366433640,1750253460417,-490.0,0.00016602,2]
[366433641,1750253460428,-490.0,0.00016602,2]
[366433642,1750253460437,-893.25,0.00016602,2]
[366433643,1750253460447,-490.0,0.00016602,2]
[366433644,1750253460457,-1653.27,0.00016602,2]
[366433645,1750253460467,-1231.88,0.00016602,2]
[366433646,1750253460477,-490.0,0.00016602,2]
[366433647,1750253460487,-493.55,0.00016602,2]
[366433648,1750253460496,-1561.77,0.00016602,2]
[366433649,1750253460506,-921.08,0.00016602,2]
[366433650,1750253460517,-1648.48,0.00016602,2]
[366433651,1750253460531,-490.0,0.00016602,2]
[366433652,1750253460542,-1400.47,0.00016602,2]
[366433653,1750253460553,-490.0,0.00016602,2]
[366433654,1750253460564,-1273.26,0.00016602,2]
[366433655,1750253460575,-1697.64,0.00016602,2]
[366433656,1750253460585,-1741.3,0.00016602,2]
[366433657,1750253460595,-490.0,0.00016602,2]
[366433658,1750253460605,-888.38,0.00016602,2]
[366433659,1750253460615,-2011.17,0.00016602,2]
[366433660,1750253460625,-2439.96,0.00016602,2]
[366433661,1750253460635,-1271.77,0.00016602,2]
[366433662,1750253460644,-490.0,0.00016602,2]
[366433663,1750253460653,-684.64,0.00016602,2]
[366433664,1750253460663,-625.88,0.00016602,2]
[366433665,1750253460673,-951.28,0.00016602,2]
[366433666,1750253460683,-639.94,0.00016602,2]
[366433667,1750253460692,-1160.72,0.00016602,2]
[366433668,1750253460702,-2589.02,0.00016602,2]
[366433669,1750253460713,-563.5,0.00016602,2]
[366433670,1750253460723,-490.0,0.00016602,2]
[366433671,1750253460733,-490.0,0.00016602,2]
[366433672,1750253460743,-437.07468443,0.00016602,2]
[366433673,1750253460753,-1574.17,0.00016602,2]
[366433674,1750253460763,-542.49,0.00016602,2]
[366433675,1750253460775,-1112.69,0.00016602,2]
[366433676,1750253460786,-548.44,0.00016602,2]
[366433677,1750253460796,-490.0,0.00016602,2]
[366433678,1750253460806,-1465.4,0.00016602,2]
[366433679,1750253460815,-582.3,0.00016602,2]
[366433680,1750253460826,-1351.74,0.00016602,2]
[366433681,1750253460837,-1525.37,0.00016602,2]
[366433682,1750253460847,-1458.77,0.00016602,2]
[366433683,1750253460858,-199.98722548,0.00016602,2]
[366433684,1750253460869,-818.84,0.00016602,2]
[366433685,1750253460879,-735.40154317,0.00016602,2]
[366433686,1750253460895,-68.58845683,0.00016602,2]
[366433687,1750253460905,-476.41154317,0.00016602,2]
[366433688,1750253460922,-13.58845683,0.00016602,2]
[366433689,1750253460932,-512.96216276,0.00016602,2]
[366433691,1750253659721,181.25,0.00012394,2]
[366433693,1750253754176,200.0,0.00012332,2]
[366433694,1750253771943,205.0,0.00012609,2]
[366433695,1750253801501,202.0,0.00012609,2]
[366433698,1750253915637,150.0,0.00013033,2]
[366433699,1750253921674,202.0,0.00012609,2]
[366433700,1750253976259,150.0,0.00012931,2]
[366433701,1750254008300,200.0,0.00012866,2]
[366433702,1750254132480,205.0,0.00013003,2]
[366433704,1750254264171,230.67008934,0.00012938,2]
[366433705,1750254275509,-1000.0,0.00036937,30]
[366433706,1750254275551,-302.67841541,0.00036937,30]
[366433707,1750254275589,-1000.0,0.00036937,30]
[366433708,1750254275628,-807.38328659,0.00036937,30]
[366433709,1750254275666,-1000.0,0.00036937,30]
[366433710,1750254275702,-1000.0,0.00036937,30]
[366433711,1750254275738,-1000.0,0.00036937,30]
[366433712,1750254275774,-1000.0,0.00036937,30]
[366433713,1750254275808,-1000.0,0.00036937,30]
[366433714,1750254275843,-1000.0,0.00036937,30]
[366433715,1750254275876,-1000.0,0.00036937,30]
[366433716,1750254275910,-1000.0,0.00036937,30]
[366433717,1750254275946,-1000.0,0.00036937,30]
[366433718,1750254275981,-1000.0,0.00036937,30]
[366433719,1750254276017,-1000.0,0.00036937,30]
[366433720,1750254276055,-1000.0,0.00036937,30]
[366433721,1750254276092,-1000.0,0.00036937,30]
[366433722,1750254276129,-1000.0,0.00036937,30]
[366433723,1750254276165,-1000.0,0.00036937,30]
[366433724,1750254276202,-1000.0,0.00036937,30]
[366433725,1750254276243,-1000.0,0.00036937,30]
[366433726,1750254276282,-822.90638273,0.00036937,30]
[366433727,1750254276320,-1000.0,0.00036937,30]
[366433728,1750254276358,-3250.32189949,0.00036937,30]
[366433729,1750254276395,-519.58235789,0.00036937,30]
[366433730,1750254276432,-388.32306465,0.00036937,30]
[366433731,1750254276468,-890.78414746,0.00036937,30]
[366433732,1750254276503,-1000.0,0.00036937,30]
[366433733,1750254276542,-2427.81739719,0.00036937,30]
[366433734,1750254276578,-2834.1365874,0.00036937,30]
[366433735,1750254276613,-2042.66148942,0.00036937,30]
[366433736,1750254276650,-751.69135581,0.00036937,30]
[366433737,1750254276687,-2500.0,0.00036937,30]
[366433738,1750254276722,-872.52700549,0.00036937,30]
[366433739,1750254276757,-2183.96198375,0.00036937,30]
[366433740,1750254276791,-880.87207954,0.00036937,30]
[366433741,1750254276826,-948.82311782,0.00036937,30]
[366433742,1750254276861,-212.36628741,0.00036937,30]
[366433743,1750254276897,-980.21900451,0.00036937,30]
[366433744,1750254276933,-2000.0,0.00036937,30]
[366433745,1750254276969,-1031.95301744,0.00036937,30]
[366433746,1750254277008,-358.26669734,0.00036937,30]
[366433747,1750254277047,-214.67699821,0.00036937,30]
[366433748,1750254277084,-1031.79081785,0.00036937,30]
[366433749,1750254277121,-3149.19110828,0.00036937,30]
[366433750,1750254277157,-997.0,0.00036937,30]
[366433751,1750254277193,-901.63640053,0.00036937,30]
[366433752,1750254277231,-220.0,0.00036937,30]
[366433753,1750254277269,-208.16305598,0.00036937,30]
[366433754,1750254277308,-272.65195593,0.00036937,30]
[366433755,1750254277346,-2753.4140184,0.00036937,30]
[366433756,1750254277383,-1797.20958312,0.00036937,30]
[366433757,1750254277419,-207.98354216,0.00036937,31]
[366433758,1750254277455,-2379.64283188,0.00036937,30]
[366433759,1750254277494,-1495.08795319,0.00036937,30]
[366433760,1750254277531,-2246.74592959,0.00036937,30]
[366433761,1750254277567,-2076.24245644,0.00036937,30]
[366433762,1750254277602,-267.76974581,0.00036937,30]
[366433763,1750254277637,-2506.42676716,0.00036937,30]
[366433764,1750254277675,-1984.06181345,0.00036937,30]
[366433765,1750254277712,-500.0,0.00036937,30]
[366433766,1750254277746,-1809.0,0.00036937,31]
[366433767,1750254277781,-1811.0,0.00036937,31]
[366433768,1750254277816,-1809.0,0.00036937,31]
[366433769,1750254277850,-1809.0,0.00036937,31]
[366433770,1750254277883,-1809.0,0.00036937,31]
[366433771,1750254277918,-2647.0,0.00036937,31]
[366433772,1750254277955,-2660.0,0.00036937,31]
[366433773,1750254277992,-2647.0,0.00036937,31]
[366433774,1750254278027,-2647.0,0.00036937,31]
[366433775,1750254278061,-2647.0,0.00036937,31]
[366433776,1750254278095,-2647.0,0.00036937,31]
[366433777,1750254278129,-2647.0,0.00036937,31]
[366433778,1750254278163,-2647.0,0.00036937,31]
[366433779,1750254278197,-2647.0,0.00036937,31]
[366433780,1750254278232,-2647.0,0.00036937,31]
[366433781,1750254278266,-2647.0,0.00036937,31]
[366433782,1750254278307,-2647.0,0.00036937,31]
[366433783,1750254278347,-2647.0,0.00036937,31]
[366433784,1750254278386,-2647.0,0.00036937,31]
[366433785,1750254278425,-2647.0,0.00036937,31]
[366433786,1750254278463,-362.0,0.00036937,31]
[366433787,1750254278498,-362.0,0.00036937,31]
[366433788,1750254278537,-50000.0,0.00036937,30]
[366433789,1750254278572,-50000.0,0.00036937,31]
[366433790,1750254278607,-50000.0,0.00036937,32]
[366433791,1750254278641,-50000.0,0.00036937,33]
[366433792,1750254278886,-50000.0,0.00036937,34]
[366433793,1750254278924,-50000.0,0.00036937,35]
[366433794,1750254278962,-50000.0,0.00036937,36]
[366433795,1750254279000,-50000.0,0.00036937,37]
[366433796,1750254279036,-50000.0,0.00036937,38]
[366433797,1750254279071,-50000.0,0.00036937,39]
[366433798,1750254279105,-5000.0,0.00036937,31]
[366433799,1750254279140,-1372.0,0.00036937,50]
[366433800,1750254279175,-1372.0,0.00036937,50]
[366433801,1750254279212,-1372.0,0.00036937,50]
[366433802,1750254279249,-1372.0,0.00036937,50]
[366433803,1750254279287,-1372.0,0.00036937,50]
[366433804,1750254279323,-1372.0,0.00036937,50]
[366433805,1750254279359,-1372.0,0.00036937,50]
[366433806,1750254279394,-1372.0,0.00036937,50]
[366433807,1750254279429,-1372.0,0.00036937,50]
[366433808,1750254279467,-1372.0,0.00036937,50]
[366433809,1750254279504,-102861.56387269,0.00036937,46]
[366433810,1750254279543,-1000.0,0.00036937,60]
[366433811,1750254279580,-502.93317936,0.00036937,60]
[366433812,1750254279617,-404.96214624,0.00036937,120]
[366433813,1750254279654,-1282.95,0.00036937,120]
[366433814,1750254279691,-1282.95,0.00036937,120]
[366433815,1750254279730,-1282.95,0.00036937,120]
[366433816,1750254279771,-1282.95,0.00036937,120]
[366433817,1750254279812,-1282.95,0.00036937,120]
[366433818,1750254279852,-1282.95,0.00036937,120]
[366433819,1750254279893,-1282.95,0.00036937,120]
[366433820,1750254279934,-1282.95,0.00036937,120]
[366433821,1750254279974,-1282.95,0.00036937,120]
[366433822,1750254280017,-1282.95,0.00036937,120]
[366433823,1750254280055,-1282.95,0.00036937,120]
[366433824,1750254280092,-1282.95,0.00036937,120]
[366433825,1750254280133,-1282.95,0.00036937,120]
[366433826,1750254280172,-1282.95,0.00036937,120]
[366433827,1750254280211,-1282.95,0.00036937,120]
[366433828,1750254280249,-1282.95,0.00036937,120]
[366433829,1750254280285,-1282.95,0.00036937,120]
[366433830,1750254280324,-1283.06139406,0.00036937,120]
[366433831,1750254280359,-1535.84437053,0.00036937,120]
[366433832,1750254280394,-232.84169143,0.00036937,120]
[366433833,1750254280429,-182.52134671,0.00036937,120]
[366433834,1750254280467,-946.46988629,0.00036937,120]
[366433835,1750254280503,-473.23925524,0.00036937,120]
[366433836,1750254280542,-228.71650444,0.00036937,120]
[366433837,1750254280578,-568.56578958,0.00036937,120]
[366433838,1750254280614,-1019.59345941,0.00036937,120]
[366433839,1750254280647,-1501.84299449,0.00036937,120]
[366433840,1750254280683,-310.9606416,0.00036937,120]
[366433841,1750254280717,-1123.23981756,0.00036937,120]
[366433842,1750254280751,-446.26722713,0.00036937,60]
[366433843,1750254280784,-2130.8596448,0.00036937,120]
[366433844,1750254280818,-1156.26541012,0.00036937,120]
[366433845,1750254280851,-1529.95,0.00036937,120]
[366433846,1750254280891,-1529.95,0.00036937,120]
[366433847,1750254280926,-1529.95,0.00036937,120]
[366433848,1750254280962,-1529.95,0.00036937,120]
[366433849,1750254281000,-1529.95,0.00036937,120]
[366433850,1750254281036,-1529.95,0.00036937,120]
[366433851,1750254281078,-1529.95,0.00036937,120]
[366433852,1750254281113,-1529.95,0.00036937,120]
[366433853,1750254281148,-1529.95,0.00036937,120]
[366433854,1750254281185,-1529.95,0.00036937,120]
[366433855,1750254281223,-1529.95,0.00036937,120]
[366433856,1750254281257,-1529.95,0.00036937,120]
[366433857,1750254281293,-1529.95,0.00036937,120]
[366433858,1750254281331,-1529.95,0.00036937,120]
[366433859,1750254281367,-1529.95,0.00036937,120]
[366433860,1750254281403,-1529.95,0.00036937,120]
[366433861,1750254281438,-1529.95,0.00036937,120]
[366433862,1750254281473,-1529.95,0.00036937,120]
[366433863,1750254281514,-1529.95,0.00036937,120]
[366433864,1750254281555,-1529.95,0.00036937,120]
[366433865,1750254281594,-1529.95,0.00036937,120]
[366433866,1750254281633,-1529.95,0.00036937,120]
[366433867,1750254281671,-1529.95,0.00036937,120]
[366433868,1750254281709,-1530.12051011,0.00036937,120]
[366433869,1750254281750,-408.0,0.00036937,120]
[366433870,1750254281787,-4000.0,0.00036937,60]
[366433871,1750254281824,-1000.0,0.00036937,30]
[366433872,1750254281861,-1000.0,0.00036937,60]
[366433873,1750254281897,-1176.83949892,0.00036937,60]
[366433874,1750254281934,-1000.0,0.00036937,60]
[366433875,1750254281972,-1000.0,0.00036937,120]
[366433876,1750254282009,-1000.0,0.00036937,30]
[366433877,1750254282339,-1000.0,0.00036937,30]
[366433878,1750254282379,-10527.91992532,0.00036937,120]
[366433879,1750254282416,-2870.21440295,0.00036937,120]
[366433880,1750254282451,-2417.16827813,0.00036937,120]
[366433881,1750254282490,-2360.0,0.00036937,120]
[366433882,1750254282528,-3238.79230882,0.00036937,120]
[366433883,1750254282564,-2617.61912481,0.00036937,120]
[366433884,1750254282600,-100000.0,0.00036937,30]
[366433885,1750254282637,-100000.0,0.00036937,30]
[366433886,1750254282673,-9523.2794708,0.00036937,120]
[366433887,1750254282711,-500.0,0.00036937,120]
[366433888,1750254282748,-355.30362751,0.00036937,120]
[366433889,1750254282782,-209.5,0.00036937,30]
[366433890,1750254282816,-151.38929545,0.00036937,60]
[366433891,1750254282850,-599.6308,0.00036937,120]
[366433892,1750254282901,-1594.0,0.00036937,30]
[366433893,1750254282940,-190.0,0.00036937,120]
[366433894,1750254282979,-14762.0,0.00036937,60]
[366433895,1750254283020,-25230.0,0.00036937,41]
[366433896,1750254283057,-1915.05550481,0.00036937,120]
[366433897,1750254283092,-3124857.25622983,0.00036937,60]
[366433898,1750254283128,-676.29751346,0.00036937,120]
[366433899,1750254283165,-19244.89008014,0.00036937,31]
[366433900,1750254283200,-10000.0,0.00036937,120]
[366433901,1750254283237,-2607.0,0.00036937,120]
[366433902,1750254283274,-6500.81913716,0.00036937,60]
[366433903,1750254283312,-2649.0,0.00036937,120]
[366433904,1750254283349,-5000.0,0.00036937,30]
[366433905,1750254283387,-6646.309463,0.00036937,30]
[366433906,1750254283425,-2000.0,0.00036937,120]
[366433907,1750254283462,-2000.0,0.00036937,120]
[366433908,1750254283500,-2000.0,0.00036937,120]
[366433909,1750254283551,-1637.0,0.00036937,120]
[366433910,1750254283594,-452.0,0.00036937,31]
[366433911,1750254283633,-456.0,0.00036937,31]
[366433912,1750254283670,-452.0,0.00036937,31]
[366433913,1750254283707,-452.0,0.00036937,31]
[366433914,1750254283745,-452.0,0.00036937,31]
[366433915,1750254283785,-500.0,0.00036937,120]
[366433916,1750254283824,-346.09858663,0.00036937,120]
[366433917,1750254283861,-160.81005073,0.00036937,60]
[366433918,1750254283900,-319.48339648,0.00036937,120]
[366433919,1750254283937,-940.19401915,0.00036937,120]
[366433920,1750254283975,-150.08874886,0.00036937,30]
[366433921,1750254284013,-724.87261976,0.00036937,30]
[366433922,1750254284051,-474.31955387,0.00036937,30]
[366433923,1750254284091,-1967.48144584,0.00036937,30]
[366433924,1750254284132,-308.41927396,0.00036937,30]
[366433925,1750254284172,-169.0,0.00036937,120]
[366433926,1750254284215,-160.42850241,0.00036937,30]
[366433927,1750254284260,-3101.38678891,0.00036937,120]
[366433928,1750254284305,-694083.29265518,0.00036937,30]
[366433929,1750254286914,202.0,0.00013003,2]
[366433930,1750254290602,-2157735.70734482,0.00036937,30]
[366433931,1750254290640,-2999.999999,0.00036937,30]
[366433932,1750254290676,-1098.19876226,0.00036937,120]
[366433933,1750254290713,-1015.62177758,0.00036937,120]
[366433934,1750254290749,-4661.20334903,0.00036937,120]
[366433935,1750254290786,-5000.0,0.00036937,35]
[366433936,1750254290822,-319.54550455,0.00036937,120]
[366433937,1750254290859,-1000.0,0.00036937,60]
[366433938,1750254291281,-1000.0,0.00036937,30]
[366433939,1750254291320,-1000.0,0.00036937,60]
[366433940,1750254291358,-1000.0,0.00036937,30]
[366433941,1750254291397,-1000.0,0.00036937,60]
[366433942,1750254291434,-1000.0,0.00036937,30]
[366433943,1750254291472,-1000.0,0.00036937,30]
[366433944,1750254291511,-1000.0,0.00036937,120]
[366433945,1750254291550,-6187.83783391,0.00036937,60]
[366433946,1750254291586,-1000.0,0.00036937,30]
[366433947,1750254291624,-1162.14091661,0.00036937,60]
[366433948,1750254291661,-763.42053901,0.00036937,60]
[366433949,1750254291697,-292.72348717,0.00036937,60]
[366433950,1750254291735,-364.00222064,0.00036937,60]
[366433951,1750254291770,-12358.35073857,0.00036937,30]
[366433952,1750254291806,-1868755.79093833,0.00036937,30]
[366433953,1750254291843,-928285.45658852,0.00036937,30]
[366433954,1750254297707,-52518.00288164,0.00036937,30]
[366433955,1750254297748,-1280250.63522915,0.00036937,30]
[366433956,1750254297787,-502623.0128803,0.00036937,30]
[366433957,1750254297825,-846773.94725599,0.00036937,30]
[366433958,1750254297864,-222.0,0.00036937,60]
[366433959,1750254297905,-500.0,0.00036937,120]
[366433960,1750254297945,-421.36551886,0.00036937,120]
[366433961,1750254297984,-177.34161684,0.00036937,60]
[366433962,1750254298022,-932.05645495,0.00036937,120]
[366433963,1750254298060,-173.29164008,0.00036937,60]
[366433964,1750254298098,-1787.63445217,0.00036937,120]
[366433965,1750254298136,-348.83970569,0.00036937,30]
[366433966,1750254298176,-284.08734406,0.00036937,30]
[366433967,1750254298216,-200.39154893,0.00036937,30]
[366433968,1750254298256,-7746.1675136,0.00036937,120]
[366433969,1750254298299,-580.8001775,0.00036937,120]
[366433970,1750254298340,-212.81410559,0.00036937,30]
[366433971,1750254298381,-404.36501435,0.00036937,120]
[366433972,1750254298422,-434.24899848,0.00036937,120]
[366433973,1750254298461,-629.86325435,0.00036937,60]
[366433974,1750254298500,-420.0,0.00036937,60]
[366433975,1750254298540,-419.0,0.00036937,60]
[366433976,1750254298579,-533.0,0.00036937,60]
[366433977,1750254298622,-350.0,0.00036937,120]
[366433978,1750254298664,-2896.0,0.00036937,120]
[366433979,1750254298701,-2125.83792264,0.00036937,120]
[366433980,1750254298738,-2693.0,0.00036937,42]
[366433981,1750254298774,-1059040.5175175,0.00036937,45]
[366433982,1750254298812,-1097.8528472,0.00036937,120]
[366433983,1750254298849,-12842.18754294,0.00036937,30]
[366433984,1750254298884,-20236.99463157,0.00036937,120]
[366433985,1750254298920,-587.93728447,0.00036937,120]
[366433986,1750254298955,-329.5816332,0.00036937,120]
[366433987,1750254298991,-5000.0,0.00036937,34]
[366433988,1750254299028,-265.86246485,0.00036937,120]
[366433989,1750254299069,-500.0,0.00036937,120]
[366433990,1750254299117,-330.62251136,0.00036937,120]
[366433991,1750254299160,-154.11921599,0.00036937,60]
[366433992,1750254299204,-7500.0,0.00036937,120]
[366433993,1750254299469,-191.0,0.00036937,120]
[366433994,1750254299514,-1999.999996,0.00036937,120]
[366433995,1750254299555,-180.48911,0.00036937,120]
[366433996,1750254299594,-2725.86149303,0.00036937,90]
[366433997,1750254299632,-2185.62250937,0.00036937,30]
[366433998,1750254299669,-195.54282905,0.00036937,91]
[366433999,1750254299706,-865.68760113,0.00036937,120]
[366434000,1750254299745,-1185.8694716,0.00036937,120]
[366434001,1750254299787,-567.18036582,0.00036937,120]
[366434002,1750254299827,-154.13934957,0.00036937,120]
[366434003,1750254299867,-619.95707537,0.00036937,120]
[366434004,1750254299906,-579.50680663,0.00036937,120]
[366434005,1750254299945,-31950.32396948,0.00036937,120]
[366434006,1750254299985,-281.37354122,0.00036937,120]
[366434007,1750254300026,-506.42271297,0.00036937,120]
[366434008,1750254300066,-769.64060746,0.00036937,90]
[366434009,1750254300106,-306.29700935,0.00036937,120]
[366434010,1750254300147,-2551.97487818,0.00036937,120]
[366434011,1750254300188,-264.96291301,0.00036937,120]
[366434012,1750254300234,-865.82428688,0.00036937,120]
[366434013,1750254300278,-541.81576109,0.00036937,30]
[366434014,1750254300321,-358.80227773,0.00036937,60]
[366434015,1750254300364,-1155.52556658,0.00036937,120]
[366434016,1750254300406,-1149.69900613,0.00036937,120]
[366434017,1750254300447,-1029.73020907,0.00036937,120]
[366434018,1750254300493,-256.04978097,0.00036937,120]
[366434019,1750254300533,-978.49088502,0.00036937,120]